lending/lending_fUSD_20250913
["ID","MTS","AMOUNT","RATE_DAILY","PERIOD"]
[385338772,1757787033038,-3013.7327643,0.00026875,2]
[385338774,1757787033047,-2425.9932178,0.00026875,2]
[385338776,1757787033058,-86820.28295848,0.00026888,2]
[385338778,1757787033068,-214.63571642,0.00026888,2]
[385338780,1757787033078,-5360.99332222,0.00026892,2]
[385338782,1757787033088,-328.15717315,0.00026899,2]
[385338784,1757787033098,-66486.58849782,0.00026899,2]
[385338785,1757787033143,-666.0,0.00026899,2]
[385338786,1757787033154,-453.09695537,0.00026899,2]
[385338787,1757787033173,-499.5324,0.00026899,2]
[385338788,1757787033185,-509.85434807,0.00026899,2]
[385338790,1757787038518,-731.21115744,0.00026899,2]
[385338831,1757787040644,-1323.98071964,0.00026899,2]
[385338832,1757787040660,-1724.55920266,0.00026899,2]
[385338833,1757787040672,-2744.83598635,0.00026899,2]
[385338861,1757787042751,-1085.9496155,0.00026899,2]
[385339098,1757787045395,-265.59999999,0.00026899,2]
[385339110,1757787045502,-2212.469,0.00026899,2]
[385339122,1757787045608,-2547.93918122,0.00026899,2]
[385339848,1757787052786,167.0,0.00027671,14]
[385341051,1757787177149,2200.0,0.00031,30]
[385341052,1757787541684,151.46572689,0.00029379,15]
[385341053,1757787546115,182.27,0.00027425,30]
[385341054,1757787583747,162.75,0.00013066,2]
[385341055,1757787583803,162.75,0.00017422,2]
[385341056,1757787608668,328.017,0.00026883,30]
[385341057,1757787614321,167.0,0.00031,120]
[385341058,1757787825305,300.09546567,0.000309,120]
[385341059,1757787825487,207.0,0.0003,120]
[385341060,1757787833435,1993.0,0.00031,120]
[385341061,1757787834188,151.0,0.00031,120]
[385341062,1757787836305,583.0,0.00031,120]
[385341063,1757787837105,1857.0,0.00031,120]
[385341064,1757787837266,151.46572689,0.00029021,15]
[385341065,1757787837557,151.46572689,0.0002991,15]
[385341066,1757787839195,495.0,0.00031,120]
[385341067,1757787840019,285.0,0.00031,120]
[385341068,1757787840928,246.57533137,0.00031,120]
[385341069,1757787868891,1000.0,0.00031,30]
[385341070,1757787869131,1000.0,0.00031,30]
[385341071,1757787869377,1000.0,0.00031,30]
[385341072,1757787869927,1000.0,0.00031,30]
[385341073,1757787870592,1000.0,0.00031,30]
[385341074,1757787870895,1000.0,0.00031,30]
[385341075,1757787871350,1000.0,0.00031,30]
[385341076,1757787871515,1000.0,0.00031,30]
[385341077,1757787871686,1000.0,0.00031,30]
[385341078,1757787871967,1000.0,0.00031,30]
[385341079,1757787872213,1000.0,0.00031,30]
[385341080,1757787872477,1000.0,0.00031,30]
[385341081,1757787872798,1000.0,0.00031,30]
[385341082,1757787872987,1000.0,0.00031,30]
[385341083,1757787873241,1000.0,0.00031,30]
[385341084,1757787873772,1000.0,0.00031,30]
[385341085,1757787873990,1000.0,0.00031,30]
[385341086,1757787874137,1000.0,0.00031,30]
[385341087,1757787875205,1000.0,0.00031,30]
[385341088,1757787875279,1000.0,0.00031,30]
[385341089,1757787875349,1000.0,0.00031,30]
[385341090,1757787875408,1000.0,0.00031,30]
[385341091,1757787875478,1000.0,0.00031,30]
[385341092,1757787875678,1067.38,0.00031,30]
[385341093,1757787888117,432.0,0.00027387,120]
[385341094,1757787888570,432.0,0.00027377,120]
[385341095,1757787889066,432.0,0.00027367,120]
[385341096,1757787889474,432.0,0.0002874,120]
[385341097,1757787889961,432.0,0.0002873,120]
[385341098,1757787890406,432.0,0.0002872,120]
[385341099,1757787890858,432.0,0.0002986,120]
[385341100,1757787891319,432.0,0.0002985,120]
[385341101,1757787891762,432.0,0.0003098,120]
[385341102,1757787892288,441.0,0.0003097,120]
[385341103,1757787897892,1399.0,0.00031,120]
[385341104,1757787898712,194.0,0.00031,120]
[385341105,1757787899511,771.0,0.00031,120]
[385341106,1757787901740,783.0,0.00031,120]
[385341107,1757787902612,207.0,0.00031,120]
[385341108,1757787903181,348.0,0.00028076,120]
[385341109,1757787904453,230.999998,0.00030137,120]
[385341110,1757787904489,1306.21922,0.00030137,120]
[385341111,1757787904518,1199.16716318,0.00030137,120]
[385341112,1757787904567,1264.0,0.00030137,120]
[385341113,1757787904628,348.0,0.0002948,120]
[385341114,1757787905765,348.0,0.00030954,120]
[385341115,1757787908637,19035.68683303,0.0002,2]
[385341116,1757787908674,439859.53415195,0.0002,2]
[385341117,1757787937510,1000.0,0.00031,30]
[385341118,1757787937807,1000.0,0.00031,30]
[385341119,1757787938095,1000.0,0.00031,30]
[385341120,1757787938347,1000.0,0.00031,30]
[385341121,1757787938623,1000.0,0.00031,30]
[385341122,1757787938923,1000.0,0.00031,30]
[385341123,1757787939130,1000.0,0.00031,30]
[385341124,1757787939386,1000.0,0.00031,30]
[385341125,1757787940418,1000.0,0.00031,30]
[385341126,1757787940506,1000.0,0.00031,30]
[385341127,1757787940680,1000.0,0.00031,30]
[385341128,1757787940756,1000.0,0.00031,30]
[385341129,1757787941317,1000.0,0.00031,30]
[385341130,1757787941478,1000.0,0.00031,30]
[385341131,1757787941551,1000.0,0.00031,30]
[385341132,1757787941666,1000.0,0.00031,30]
[385341133,1757787942121,1000.0,0.00031,30]
[385341134,1757787942664,1000.0,0.00031,30]
[385341135,1757787942941,1000.0,0.00031,30]
[385341136,1757787943190,1000.0,0.00031,30]
[385341137,1757787943451,1000.0,0.00031,30]
[385341138,1757787943691,1000.0,0.00031,30]
[385341139,1757787943948,1000.0,0.00031,30]
[385341140,1757787944186,1000.0,0.00031,30]
[385341141,1757787944448,1000.0,0.00031,30]
[385341142,1757787944669,1000.0,0.00031,30]
[385341143,1757787948620,1197.09109512,0.0001995,15]
[385341144,1757787958225,1162.0,0.00031,120]
[385341145,1757787959046,679.0,0.00031,120]
[385341146,1757787959814,216.0,0.00031,120]
[385341147,1757787962339,863.0,0.00031,120]
[385341148,1757787963198,1655.0,0.00031,120]
[385341149,1757787964319,620.0,0.00031,120]
[385341150,1757787964400,2467.45621101,8e-05,2]
[385341151,1757787970699,2000.0,0.00026883,120]
[385341152,1757787970968,1244.289,0.00026883,120]
[385341153,1757787971589,452.231,0.00026883,120]
[385341154,1757787991104,-162.75,0.00021777,2]
[385341155,1757787991126,-2.02129421,0.0002188,2]
[385341156,1757788006153,1000.0,0.00031,30]
[385341157,1757788006376,1000.0,0.00031,30]
[385341158,1757788006823,1000.0,0.00031,30]
[385341159,1757788007084,1000.0,0.00031,30]
[385341160,1757788007373,1000.0,0.00031,30]
[385341161,1757788007601,1000.0,0.00031,30]
[385341162,1757788007841,1000.0,0.00031,30]
[385341163,1757788008095,1000.0,0.00031,30]
[385341165,1757788008129,150.5,0.00027387,120]
[385341166,1757788008359,1000.0,0.00031,30]
[385341167,1757788008579,150.5,0.00027377,120]
[385341168,1757788009042,150.5,0.00027367,120]
[385341169,1757788018361,683.76,0.00030136,120]
[385341170,1757788018623,683.76,0.00030136,120]
[385341171,1757788018905,683.76,0.00030136,120]
[385341172,1757788019173,683.76,0.00030136,120]
[385341173,1757788019446,683.76,0.00030136,120]
[385341174,1757788019754,683.76,0.00030136,120]
[385341175,1757788020023,683.76,0.00030136,120]
[385341176,1757788020346,683.76,0.00030136,120]
[385341177,1757788020609,683.76,0.00030136,120]
[385341178,1757788021051,571.54264338,0.00027397,120]
[385341179,1757788021148,213.0,0.00031,120]
[385341180,1757788021247,683.76,0.00030136,120]
[385341181,1757788021516,683.76,0.00030136,120]
[385341182,1757788021777,683.76,0.0003041,120]
[385341183,1757788021940,1323.0,0.00031,120]
[385341184,1757788022032,683.76,0.00030684,120]
[385341185,1757788022307,683.76,0.00030958,120]
[385341186,1757788022772,1055.0,0.00031,120]
[385341187,1757788025317,505.0,0.00031,120]
[385341188,1757788025496,443.77153708,0.0003013,120]
[385341189,1757788025733,912.0,0.00031,120]
[385341190,1757788032329,2270.9506872,0.0002301,120]
[385341191,1757788067423,488.49470358,0.00028,120]
[385341192,1757788068974,488.28184369,0.00027,120]
[385341193,1757788070398,1000.96,0.00031,30]
[385341194,1757788078641,789.0,0.00031,120]
[385341195,1757788079639,814.0,0.00031,120]
[385341196,1757788080191,159.0,0.00031,120]
[385341197,1757788081054,191.11,0.00030136,120]
[385341198,1757788081146,191.11,0.00030273,120]
[385341199,1757788081444,191.11,0.0003041,120]
[385341200,1757788081715,191.11,0.00030547,120]
[385341201,1757788081915,327.19081355,0.00029,120]
[385341202,1757788081982,191.11,0.00030684,120]
[385341203,1757788082244,191.11,0.00030821,120]
[385341204,1757788082513,191.11,0.00030958,120]
[385341205,1757788082858,254.0,0.00031,120]
[385341206,1757788084183,1181.0,0.00031,120]
[385341207,1757788088252,504.63583277,0.00028297,120]
[385341208,1757788092382,246.70047161,0.0003,120]
[385341209,1757788092585,761.54192428,0.0003013,120]
[385341210,1757788099027,2243.02425524,0.00030137,120]
[385341211,1757788101886,600.0,0.00031,120]
[385341212,1757788126101,518.44397159,0.0003013,120]
[385341213,1757788126854,211.07192949,0.00030136,120]
[385341214,1757788128616,816.399997,0.0003,120]
[385341215,1757788141334,903.0,0.00031,120]
[385341216,1757788142122,1829.0,0.00031,120]
[385341217,1757788142934,942.0,0.00031,120]
[385341218,1757788145215,735.0,0.00031,120]
[385341219,1757788146699,1572.0,0.00031,120]
[385341220,1757788197833,1650.0,0.00031,120]
[385341221,1757788198801,743.0,0.00031,120]
[385341223,1757788201432,1961.0,0.00031,120]
[385341224,1757788201750,1866.0,0.00031,120]
[385341225,1757788202387,1652.0,0.00031,120]
[385341226,1757788203104,325.9987489,0.00030137,120]
[385341227,1757788203136,453.999999,0.00030137,120]
[385341228,1757788203169,1264.0,0.00030137,120]
[385341229,1757788203205,2129.35,0.00030137,120]
[385341230,1757788203243,165.26958185,0.00030137,120]
[385341231,1757788203272,488.07,0.00031,120]
[385341232,1757788206241,281.0,0.00030895,120]
[385341233,1757788213579,383.0,0.00031,120]
[385341234,1757788214318,150.0,0.00031,120]
[385341235,1757788223054,1500.0,0.00027,120]
[385341236,1757788223116,1500.0,0.000286,120]
[385341237,1757788223227,1753.41558,0.000302,120]
[385341238,1757788225666,150.0,0.0003096,120]
[385341244,1757788231566,-2000.0,0.0002183,3]
[385341245,1757788231576,-192.97870579,0.0002188,2]
[385341246,1757788231585,-300.0,0.0002188,2]
[385341247,1757788231595,-300.0,0.00021983,2]
[385341248,1757788231604,-2000.0,0.00021988,3]
[385341249,1757788231613,-2000.0,0.00021988,3]
[385341250,1757788231623,-500.0,0.00021988,2]
[385341251,1757788231632,-500.0,0.00021988,2]
[385341252,1757788231642,-373.59139003,0.00022117,2]
[385341253,1757788231651,-247.0,0.0002218,2]
[385341254,1757788231660,-297.0,0.0002218,2]
[385341255,1757788231670,-300.0,0.0002218,2]
[385341256,1757788231679,-1200.0,0.0002218,2]
[385341257,1757788231689,-2500.0,0.00022181,2]
[385341258,1757788231699,-2500.0,0.00022181,2]
[385341259,1757788231709,-1900.48276875,0.00022181,2]
[385341260,1757788231719,-195.0,0.00022181,2]
[385341261,1757788231729,-29.78060079,0.00022181,2]
[385341262,1757788231741,-470.21939921,0.00022181,2]
[385341263,1757788231750,-300.0,0.00022455,2]
[385341264,1757788231760,-911.22873143,0.00023527,2]
[385341265,1757788231770,-354.0,0.00023955,2]
[385341266,1757788231780,-2500.0,0.00023955,2]
[385341267,1757788231790,-300.0,0.00023955,2]
[385341268,1757788231799,-250.0,0.00023955,2]
[385341269,1757788231808,-150.70534077,0.00023955,2]
[385341270,1757788231818,-2500.0,0.00023955,2]
[385341271,1757788231827,-2000.0,0.00023955,3]
[385341272,1757788231837,-195.0,0.00023955,2]
[385341273,1757788231846,-500.0,0.00023955,2]
[385341274,1757788231855,-300.0,0.00023955,2]
[385341275,1757788231864,-212.99211257,0.00023955,3]
[385341276,1757788231874,-160.0,0.00023955,3]
[385341277,1757788231883,-515.60081738,0.00023955,3]
[385341278,1757788231893,-160.0,0.00023955,3]
[385341279,1757788231903,-150.0,0.00023958,2]
[385341280,1757788231912,-195.0,0.00023958,2]
[385341281,1757788231922,-327.95284368,0.00023958,2]
[385341282,1757788231931,-250.0,0.00023958,2]
[385341283,1757788231940,-300.62665194,0.00023958,2]
[385341284,1757788231950,-2000.0,0.00023958,3]
[385341285,1757788231959,-500.0,0.00023958,2]
[385341286,1757788231969,-2603.33844561,0.00024,5]
[385341288,1757788231978,-752.92630163,0.00024038,2]
[385341290,1757788231988,-420.0,0.00024098,2]
[385341292,1757788231998,-647.49918336,0.00024152,2]
[385341294,1757788232007,-647.49918336,0.00024152,2]
[385341296,1757788232016,-1680.0,0.00024211,2]
[385341298,1757788232025,-188.79,0.00024529,2]
[385341300,1757788232035,-225.36,0.00024606,2]
[385341302,1757788232044,-150.0,0.00024608,4]
[385341304,1757788232053,-150.0,0.00024608,4]
[385341306,1757788232063,-150.0,0.00024608,4]
[385341308,1757788232072,-150.0,0.00024608,4]
[385341310,1757788232081,-150.0,0.00024608,4]
[385341312,1757788232091,-208.33498429,0.00024608,4]
[385341314,1757788232101,-150.0,0.00024608,4]
[385341317,1757788232110,-150.0,0.00024608,4]
[385341319,1757788232119,-289.75159624,0.00024608,4]
[385341322,1757788232129,-150.0,0.00024608,4]
[385341325,1757788232138,-150.0,0.00024608,4]
[385341327,1757788232148,-150.0,0.00024608,4]
[385341330,1757788232158,-810.45322833,0.00024623,2]
[385341333,1757788232167,-2000.0,0.00024633,2]
[385341336,1757788232177,-2000.0,0.00024633,2]
[385341339,1757788232186,-1770.06390973,0.00024633,2]
[385341344,1757788232202,-229.93609027,0.00024633,2]
[385341346,1757788232211,-658.73052118,0.00024633,2]
[385341349,1757788232222,-1282.65375268,0.00024633,2]
[385341351,1757788232233,-58.61572614,0.00024633,2]
[385341352,1757788232242,-541.38427386,0.00024633,2]
[385341356,1757788232273,-1458.61572614,0.00024633,2]
[385341358,1757788232283,-2000.0,0.00024633,2]
[385341360,1757788232292,-2000.0,0.00024633,2]
[385341362,1757788232301,-2000.0,0.00024633,2]
[385341364,1757788232310,-2000.0,0.00024633,2]
[385341366,1757788232319,-2000.0,0.00024633,2]
[385341368,1757788232328,-2000.0,0.00024633,2]
[385341370,1757788232337,-2000.0,0.00024633,2]
[385341372,1757788232346,-2000.0,0.00024633,2]
[385341374,1757788232357,-551.724,0.00024633,2]
[385341376,1757788232366,-1000.0,0.00024633,2]
[385341378,1757788232375,-1000.0,0.00024633,2]
[385341380,1757788232385,-1000.0,0.00024633,2]
[385341382,1757788232395,-235.836,0.00024633,2]
[385341385,1757788232404,-2000.0,0.00024633,2]
[385341387,1757788232414,-1177.037,0.00024633,2]
[385341388,1757788232423,-2000.0,0.00024633,2]
[385341390,1757788232433,-2000.0,0.00024633,2]
[385341393,1757788232442,-1442.296,0.00024633,2]
[385341394,1757788232452,-858.042,0.00024633,2]
[385341397,1757788232462,-183.4,0.00024658,2]
[385341399,1757788232472,-4736.76945144,0.000249,2]
[385341401,1757788232482,-414.0,0.000249,2]
[385341403,1757788232491,-150.0,0.00025155,4]
[385341405,1757788232500,-150.0,0.00025292,4]
[385341407,1757788232509,-398.41388592,0.00025655,2]
[385341408,1757788232518,-150.0,0.00025702,4]
[385341411,1757788232528,-277.35679052,0.00025853,2]
[385341412,1757788232537,-150.0,0.00025872,7]
[385341414,1757788232546,-386.7,0.00025883,2]
[385341416,1757788232555,-150.0,0.00025975,4]
[385341418,1757788232565,-150.0,0.00025975,4]
[385341420,1757788232574,-150.0,0.00025975,4]
[385341422,1757788232583,-150.0,0.00025975,4]
[385341424,1757788232593,-150.0,0.00025975,4]
[385341426,1757788232602,-150.0,0.00025975,4]
[385341428,1757788232612,-406.0,0.0002608,2]
[385341430,1757788232621,-373.07476847,0.00026085,2]
[385341432,1757788232631,-350.0,0.00026085,2]
[385341434,1757788232640,-600.0,0.00026085,2]
[385341436,1757788232650,-160.0,0.00026085,2]
[385341438,1757788232660,-250.0,0.000261,2]
[385341440,1757788232669,-4316.88,0.00026101,2]
[385341442,1757788232679,-162.75,0.00026132,2]
[385341444,1757788232688,-1098.27,0.00026133,2]
[385341446,1757788232698,-355.24,0.00026169,2]
[385341448,1757788232707,-587.0,0.00026182,2]
[385341450,1757788232717,-150.0,0.00026249,4]
[385341452,1757788232727,-1047.37422748,0.00026279,2]
[385341454,1757788232736,-336.0,0.00026404,2]
[385341456,1757788232745,-2351.0,0.00026428,2]
[385341458,1757788232755,-162.81,0.00026448,2]
[385341460,1757788232764,-600.96135277,0.00026599,2]
[385341462,1757788232774,-5513.0,0.000266,5]
[385341464,1757788232783,-150.0,0.00026659,4]
[385341466,1757788232792,-933.85789681,0.00026677,2]
[385341468,1757788232802,-500.0,0.00026677,2]
[385341470,1757788232811,-150.0,0.00026677,2]
[385341472,1757788232820,-150.0,0.00026677,2]
[385341474,1757788232829,-500.0,0.00026677,2]
[385341475,1757788232839,-150.0,0.00026677,2]
[385341477,1757788232848,-150.0,0.00026677,2]
[385341479,1757788232857,-150.0,0.00026677,2]
[385341481,1757788232867,-500.0,0.00026677,2]
[385341482,1757788233064,-150.0,0.00026677,2]
[385341483,1757788233073,-150.0,0.00026677,2]
[385341484,1757788233084,-150.0,0.00026677,2]
[385341485,1757788233093,-150.0,0.00026677,2]
[385341486,1757788233103,-150.0,0.00026677,2]
[385341487,1757788233112,-200.0,0.00026684,2]
[385341488,1757788233121,-2500.0,0.000267,2]
[385341489,1757788233131,-1000.0,0.000267,2]
[385341490,1757788233140,-158.08745864,0.00026748,2]
[385341491,1757788233149,-533.69311014,0.00026748,2]
[385341492,1757788233159,-168.24897222,0.00026786,2]
[385341493,1757788233168,-1763.84128367,0.0002679,2]
[385341494,1757788234250,-2686.1262913,0.0002679,2]
[385341495,1757788234330,-500.0,0.00024632,2]
[385341496,1757788234346,-500.0,0.00024632,2]
[385341497,1757788234361,-235.82210552,0.0002679,2]
[385341498,1757788234480,-500.0,0.00024632,2]
[385341499,1757788234495,-500.0,0.00024632,2]
[385341500,1757788234513,-62.54286332,0.00024632,2]
[385341501,1757788234533,-437.45713668,0.00024632,2]
[385341502,1757788234550,-154.90492477,0.0002679,2]
[385341503,1757788234569,-5344.26128386,0.0002679,2]
[385341504,1757788234587,-298.86,0.0002679,2]
[385341505,1757788234605,-503.0,0.0002679,2]
[385341506,1757788234719,-500.0,0.00024632,2]
[385341507,1757788234734,-500.0,0.00024632,2]
[385341508,1757788234752,-240.230939,0.00024632,2]
[385341509,1757788235737,150.0,0.000301,120]
[385341510,1757788236969,150.0,0.0003096,120]
[385341511,1757788237438,-259.769061,0.00024632,2]
[385341512,1757788237448,-259.69317692,0.00024632,2]
[385341513,1757788237486,-384.69791086,0.00024632,2]
[385341514,1757788237495,-500.0,0.00024632,2]
[385341515,1757788237505,-500.0,0.00024632,2]
[385341516,1757788237515,-500.0,0.00024632,2]
[385341517,1757788237524,-500.0,0.00024632,2]
[385341518,1757788237534,-500.0,0.00024632,2]
[385341519,1757788237544,-500.0,0.00024632,2]
[385341520,1757788237555,-500.0,0.00024632,2]
[385341521,1757788237565,-414.31863803,0.00024632,2]
[385341522,1757788237574,-500.0,0.00024632,2]
[385341523,1757788237583,-500.0,0.00024632,2]
[385341524,1757788237592,-284.19,0.00025414,2]
[385341525,1757788237602,-284.19,0.00026367,2]
[385341526,1757788237611,-2591.71457528,0.0002679,2]
[385341527,1757788237620,-150.0,0.00026796,4]
[385341528,1757788237630,-420.3106373,0.00026799,2]
[385341529,1757788237639,-500.0,0.00026799,2]
[385341530,1757788237649,-500.0,0.00026799,2]
[385341531,1757788237659,-170.86949488,0.00026799,2]
[385341532,1757788237668,-500.0,0.00026799,2]
[385341533,1757788237677,-500.0,0.00026799,2]
[385341534,1757788237687,-424.05669714,0.00026799,2]
[385341535,1757788237696,-65831.17403824,0.000268,2]
[385341536,1757788237759,-833.69583873,0.000268,2]
[385341537,1757788237770,-149780.7002923,0.000268,2]
[385341538,1757788237780,-125.79322463,0.00026802,2]
[385341539,1757788237791,-42.45574759,0.00026802,2]
[385341541,1757788237801,-168.24897222,0.00026824,2]
[385341542,1757788237811,-168.24897222,0.00026839,2]
[385341543,1757788237820,-71.63129797,0.00026848,2]
[385341544,1757788237885,-590.23382065,0.00026848,2]
[385341545,1757788237905,-1278.38073598,0.00026848,2]
[385341546,1757788237914,-168.24897222,0.00026868,2]
[385341548,1757788237924,-22716.58390161,0.00026899,2]
[385341550,1757788239510,-416.916,0.00026899,2]
[385341552,1757788239932,-4111.28769877,0.00026899,2]
[385341554,1757788239959,-441.49418774,0.00026899,2]
[385341579,1757788240073,-36232.3299944,0.00026899,2]
[385341582,1757788240084,-2092.15499999,0.00026899,2]
[385341586,1757788240095,-2148.6,0.00026899,2]
[385341589,1757788240106,-466.669999,0.00026899,2]
[385341639,1757788240408,-5694.2380923,0.00026899,2]
[385341641,1757788240419,-361.94908746,0.00026899,2]
[385341669,1757788242863,-11441.7108991,0.00026899,2]
[385341670,1757788242874,-24063.29343198,0.00026899,2]
[385341671,1757788242885,-809.15556711,0.00026899,2]
[385341672,1757788242913,-699.5899999,0.00026899,2]
[385341673,1757788242925,-424.49932413,0.00026899,2]
[385341674,1757788242939,-779.36679134,0.00026899,2]
[385341675,1757788243130,-18.30792157,0.00026899,2]
[385341677,1757788245777,-2284.27096272,0.0002178,2]
[385341678,1757788245788,-19911.96332208,0.00026899,2]
[385341679,1757788245797,-214081.72828254,0.00026899,2]
[385341680,1757788245807,-391.48075991,0.00026903,2]
[385341681,1757788245817,-5360.99332222,0.00026912,2]
[385341682,1757788245826,-25420.82890827,0.00026916,2]
[385341683,1757788245835,-14060.45579771,0.0002692,2]
[385341684,1757788245867,-262.16835789,0.0002692,2]
[385341718,1757788247686,150.5,0.00027387,120]
[385341719,1757788248162,150.5,0.00027377,120]
[385341720,1757788248334,150.0,0.0003096,120]
[385341721,1757788248635,300.45,0.00027367,120]
[385341752,1757788255825,2000.0,0.00026196,120]
[385341753,1757788260355,150.0,0.0003096,120]
[385341754,1757788261671,992.0,0.00031,120]
[385341755,1757788262455,1519.51349895,0.00031,120]
[385341756,1757788264674,1122.0,0.00031,120]
[385341757,1757788265490,951.0,0.00031,120]
[385341758,1757788268533,303.0,0.00031,120]
[385341759,1757788269368,151.0,0.00031,120]
[385341760,1757788272342,150.0,0.00031,120]
[385341761,1757788273994,1100.03818626,0.000309,120]
[385341762,1757788283679,150.0,0.0003096,120]
[385341786,1757788294776,855.30264225,0.00026899,120]
[385341787,1757788294801,1144.69735775,0.00026899,120]
[385341788,1757788295063,150.0,0.0003096,120]
[385341789,1757788306321,150.0,0.0003096,120]
[385341790,1757788313242,1000.0,0.00031,30]
[385341791,1757788313833,1000.0,0.00031,30]
[385341792,1757788314139,1000.0,0.00031,30]
[385341793,1757788314341,1000.0,0.00031,30]
[385341794,1757788314640,1000.0,0.00031,30]
[385341795,1757788317707,150.0,0.00031,120]
[385341796,1757788321450,688.0,0.00031,30]
[385341797,1757788322448,476.0,0.00031,30]
[385341798,1757788329943,151.38,0.00031,30]
[385341799,1757788330364,150.0,0.00031,120]
[385341800,1757788333932,1600.0,0.00025839,120]
[385341801,1757788334065,1600.0,0.00029069,120]
[385341802,1757788340184,1350.0,0.00031,30]
[385341803,1757788341205,737.0,0.00031,30]
[385341804,1757788341273,150.0,0.00031,120]
[385341805,1757788344699,236.0,0.00031,30]
[385341806,1757788345521,443.0,0.00031,30]
[385341807,1757788352797,150.0,0.00031,120]
[385341808,1757788355483,651.762,0.00026899,120]
[385341809,1757788356101,150.0,0.000301,120]
[385341810,1757788363989,25.34580208,0.0003096,120]
[385341811,1757788374653,1845.0,0.0003013,120]
[385341812,1757788378588,661.0,0.0003013,120]
[385341813,1757788389361,161.84724405,0.00029014,15]
[385341814,1757788394355,161.84724405,0.00029609,15]
[385341815,1757788404259,1500.0,0.00025548,120]
[385341816,1757788407861,2000.0,0.00024658,15]
[385341817,1757788408239,2000.0,0.00024658,15]
[385341818,1757788408439,2000.0,0.00024658,15]
[385341819,1757788408522,2000.0,0.00024658,15]
[385341820,1757788408642,2000.0,0.00024658,15]
[385341821,1757788408948,2000.0,0.00024658,15]
[385341822,1757788409465,2000.0,0.00024658,15]
[385341823,1757788409826,2000.0,0.00024658,15]
[385341824,1757788410491,2000.0,0.00024658,15]
[385341825,1757788411019,2000.0,0.00024658,15]
[385341826,1757788434186,380.0,0.0003013,120]
[385341827,1757788478288,150.0,0.000301,120]
[385341828,1757788488206,150.75,0.00027387,120]
[385341829,1757788493371,261.98067606,0.0003013,120]
[385341830,1757788503137,453.999999,0.00030137,120]
[385341831,1757788503221,823.1,0.00030137,120]
[385341832,1757788511310,519.0,0.0002744,120]
[385341833,1757788512582,519.0,0.00028811,120]
[385341834,1757788537120,167.08,0.00027425,30]
[385341835,1757788599406,3117.0,0.00028767,120]
[385341836,1757788599833,150.0,0.000301,120]
[385341837,1757788600267,185.86,0.0001266,2]
[385341838,1757788600476,185.86,0.0001899,2]
[385341839,1757788608372,1967.0,0.00027387,120]
[385341840,1757788608844,1967.0,0.00027377,120]